[Event "EYCC 2017"]
[Site "Mamaia"]
[Date "2017.09.06"]
[Round "2"]
[White "Harutyunyan, Ruben"]
[Black "Sjoberg, Isak"]
[Result "1-0"]
[ECO "A56"]
[WhiteElo "2300"]
[BlackElo "2078"]
[Annotator "NA"]
[PlyCount "82"]
[EventDate "2017.??.??"]
[EventType "swiss"]
[EventCountry "ROU"]
[SourceTitle "playchess.com"]
[Source "ChessBase"]
[SourceQuality "1"]
[TimeControl "40/5400+30:1800+30"]

1. d4 {[%emt 0:00:00]} Nf6 {[%emt 0:00:12]} 2. c4 {[%emt 0:00:00]} c5 {[%emt 0:00:35]} 3. e3 {[%emt 0:00:42]} e6 {[%emt 0:00:15]} 4. Nc3 {[%emt 0:00:27]} cxd4 {[%emt 0:05:56]} 5. exd4 {[%emt 0:00:02]} Bb4 {[%emt 0:01:41]} 6. Bd3 {[%emt 0:01:44]} b6 {[%emt 0:04:10]} 7. Nf3 {[%emt 0:02:22]} Bb7 {[%emt 0:01:51]} 8. O-O {[%emt 0:00:25]} O-O {[%emt 0:01:50]} 9. Qe2 {[%emt 0:05:31]} Bxc3 {[%emt 0:03:33]} 10. bxc3 {[%emt 0:00:05]} d6 {[%emt 0:00:14]} 11. Rd1 {[%emt 0:07:51]} Nbd7 {[%emt 0:04:01]} 12. Bg5 {[%emt 0:58:50]} Qc7 {[%emt 0:05:47]} 13. Nd2 {[%emt 0:03:24]} Rac8 {[%emt 0:06:14]} 14. Rab1 {[%emt 0:01:38]} d5 {[%emt 0:16:43]} 15. c5 {[%emt 0:11:11]} bxc5 {[%emt 0:03:28]} 16. Qf3 {[%emt 0:01:26]} cxd4 {[%emt 0:03:34]} 17. cxd4 {[%emt 0:00:06]} Ne4 {[%emt 0:01:26]} 18. Nxe4 {[%emt 0:00:43]} dxe4 {[%emt 0:00:04]} 19. Bxe4 {[%emt 0:00:09]} Bxe4 20. Qxe4 {[%emt 0:00:02]} Nb6 {[%emt 0:00:43]} 21. Qg4 {[%emt 0:02:47]} Nd5 {[%emt 0:05:23]} 22. h4 {[%emt 0:00:56]} Kh8 {[%emt 0:07:57]} 23. Rbc1 {[%emt 0:00:21]} Qd6 {[%emt 0:01:36]} 24. Rxc8 {[%emt 0:00:26]} Rxc8 {[%emt 0:00:01]} 25. Qf3 {[%emt 0:00:28]} Kg8 {[%emt 0:01:30]} 26. Rb1 {[%emt 0:00:44]} h6 {[%emt 0:02:35]} 27. Bd2 {[%emt 0:00:34]} Nb6 {[%emt 0:01:07]} 28. Qb7 {[%emt 0:00:31]} Rc7 {[%emt 0:01:04]} 29. Qa6 {[%emt 0:00:32]} Qxd4 {[%emt 0:01:27]} 30. Be3 {[%emt 0:00:09]} Qe4 {[%emt 0:00:59]} 31. Rd1 {[%emt 0:00:43]} Nd5 {[%emt 0:09:22]} 32. Qd3 {[%emt 0:00:24]} Qxh4 {[%emt 0:00:34]} 33. Rb1 {[%emt 0:00:08]} g6 {[%emt 0:03:55]} 34. Rb8+ {[%emt 0:00:48]} Kh7 {[%emt 0:00:01]} 35. g3 {[%emt 0:00:37]} Qg4 {[%emt 0:01:30]} 36. Qd4 {[%emt 0:00:38]} Rc1+ {[%emt 0:00:08]} 37. Kg2 {[%emt 0:00:12]} Nxe3+ {[%emt 0:00:38]} 38. Qxe3 {[%emt 0:00:07]} Qd1 {[%emt 0:00:19]} 39. g4 {[%emt 0:01:13]} Qh1+ {[%emt 0:02:29]} 40. Kg3 {[%emt 0:00:00]} Rg1+ {[%emt 0:00:07]} 41. Kf4 {[%emt 0:00:07]} Qh2+ {[%emt 0:00:03]} 1-0

[Event "EYCC 2017"]
[Site "Mamaia"]
[Date "2017.09.06"]
[Round "2"]
[White "Dobrovoljc, Vid"]
[Black "Haldorsen, Benjamin"]
[Result "1/2-1/2"]
[ECO "A06"]
[WhiteElo "2293"]
[BlackElo "2397"]
[Annotator "NA"]
[PlyCount "114"]
[EventDate "2017.??.??"]
[EventType "swiss"]
[EventCountry "ROU"]
[SourceTitle "playchess.com"]
[Source "ChessBase"]
[SourceQuality "1"]
[TimeControl "40/5400+30:1800+30"]

1. Nf3 {[%emt 0:00:00]} d5 {[%emt 0:00:42]} 2. g3 {[%emt 0:00:00]} Nc6 {[%emt 0:00:33]} 3. d4 {[%emt 0:03:08]} Bg4 {[%emt 0:00:07]} 4. Bg2 {[%emt 0:03:09]} Qd7 {[%emt 0:00:17]} 5. c4 {[%emt 0:03:56]} dxc4 {[%emt 0:05:41]} 6. d5 {[%emt 0:14:39]} O-O-O {[%emt 0:03:03]} 7. Nc3 {[%emt 0:00:31]} Bxf3 {[%emt 0:06:49]} 8. Bxf3 {[%emt 0:02:52]} Ne5 {[%emt 0:00:05]} 9. Bg2 {[%emt 0:05:23]} e6 {[%emt 0:03:07]} 10. Qd4 {[%emt 0:11:29]} Nc6 {[%emt 0:06:58]} 11. Qxc4 {[%emt 0:03:39]} Nb4 {[%emt 0:10:10]} 12. Qb3 {[%emt 0:01:20]} Nf6 {[%emt 0:03:51]} 13. dxe6 {[%emt 0:04:16]} Qxe6 {[%emt 0:00:53]} 14. Qxe6+ {[%emt 0:00:51]} fxe6 {[%emt 0:00:01]} 15. O-O {[%emt 0:00:15]} e5 {[%emt 0:06:29]} 16. a3 {[%emt 0:14:01]} Nc2 {[%emt 0:08:42]} 17. Rb1 {[%emt 0:00:08]} Nd4 {[%emt 0:00:05]} 18. b4 {[%emt 0:00:39]} Kb8 {[%emt 0:00:20]} 19. e3 {[%emt 0:01:47]} Nf5 {[%emt 0:00:42]} 20. Bb2 {[%emt 0:03:33]} Nd6 {[%emt 0:02:58]} 21. Rfd1 {[%emt 0:01:43]} Be7 {[%emt 0:00:01]} 22. Bf1 {[%emt 0:01:15]} Rhe8 {[%emt 0:04:49]} 23. Na4 {[%emt 0:11:27]} Bf8 {[%emt 0:10:59]} 24. Nc5 {[%emt 0:00:15]} Nd7 {[%emt 0:15:19]} 25. Rbc1 {[%emt 0:05:56]} Nxc5 {[%emt 0:03:12]} 26. bxc5 {[%emt 0:00:20]} Ne4 {[%emt 0:00:29]} 27. c6 {[%emt 0:01:43]} Nd2 {[%emt 0:02:50]} 28. cxb7 {[%emt 0:01:26]} e4 {[%emt 0:00:58]} 29. Bg2 {[%emt 0:02:05]} Kxb7 {[%emt 0:00:15]} 30. Bd4 {[%emt 0:00:30]} Nf3+ {[%emt 0:01:13]} 31. Bxf3 {[%emt 0:00:04]} exf3 {[%emt 0:00:04]} 32. Rb1+ {[%emt 0:00:19]} Ka8 {[%emt 0:00:21]} 33. Rdc1 {[%emt 0:01:41]} Rb8 {[%emt 0:00:02]} 34. h4 {[%emt 0:01:17]} Rxb1 {[%emt 0:01:02]} 35. Rxb1 {[%emt 0:00:04]} c5 {[%emt 0:00:10]} 36. Bc3 {[%emt 0:00:04]} Rd8 {[%emt 0:00:57]} 37. Kh2 {[%emt 0:01:29]} h5 {[%emt 0:03:06]} 38. g4 {[%emt 0:00:22]} Bd6+ {[%emt 0:01:11]} 39. Kh3 {[%emt 0:00:05]} g6 {[%emt 0:00:11]} 40. Rd1 {[%emt 0:00:00]} Kb7 {[%emt 0:01:11]} 41. Bf6 {[%emt 0:11:55]} Rd7 {[%emt 0:00:28]} 42. e4 {[%emt 0:00:13]} Kc6 {[%emt 0:01:33]} 43. Rd3 {[%emt 0:00:51]} c4 {[%emt 0:07:21]} 44. Rxf3 {[%emt 0:05:58]} Bc5 {[%emt 0:00:38]} 45. gxh5 {[%emt 0:04:14]} gxh5 {[%emt 0:03:04]} 46. Kg3 {[%emt 0:00:54]} Rd3 {[%emt 0:02:44]} 47. Rxd3 {[%emt 0:02:27]} cxd3 {[%emt 0:00:09]} 48. Kf3 {[%emt 0:00:12]} Bxa3 {[%emt 0:11:43]} 49. Ke3 {[%emt 0:00:17]} Bc5+ {[%emt 0:00:06]} 50. Kxd3 {[%emt 0:00:06]} Bxf2 {[%emt 0:00:05]} 51. Ke2 {[%emt 0:01:28]} Bg1 {[%emt 0:00:16]} 52. Bc3 {[%emt 0:00:13]} Kd6 {[%emt 0:00:52]} 53. Kf3 {[%emt 0:00:06]} Bh2 {[%emt 0:00:19]} 54. Bb4+ {[%emt 0:00:56]} Ke6 {[%emt 0:00:07]} 55. Be1 {[%emt 0:00:10]} Be5 {[%emt 0:03:16]} 56. Ke3 {[%emt 0:00:42]} Kd7 {[%emt 0:00:07]} 57. Kf3 {[%emt 0:02:18]} Kc6 {[%emt 0:02:15]} 1/2-1/2

[Event "EYCC 2017"]
[Site "Mamaia"]
[Date "2017.09.06"]
[Round "2"]
[White "Murzin, Volodar"]
[Black "Zhukov, Ivan"]
[Result "1-0"]
[ECO "A05"]
[WhiteElo "2280"]
[BlackElo "1893"]
[Annotator "NA"]
[PlyCount "51"]
[EventDate "2017.??.??"]
[EventType "swiss"]
[EventCountry "ROU"]
[SourceTitle "playchess.com"]
[Source "ChessBase"]
[SourceQuality "1"]
[TimeControl "40/5400+30:1800+30"]

1. Nf3 {[%emt 0:00:00]} Nf6 {[%emt 0:00:11]} 2. g3 {[%emt 0:00:00]} g6 {[%emt 0:00:06]} 3. Bg2 {[%emt 0:00:00]} Bg7 {[%emt 0:00:06]} 4. O-O {[%emt 0:00:00]} O-O {[%emt 0:00:06]} 5. c4 {[%emt 0:00:11]} d6 {[%emt 0:00:09]} 6. Nc3 {[%emt 0:01:37]} Nc6 {[%emt 0:00:57]} 7. d3 {[%emt 0:05:15]} a6 {[%emt 0:01:31]} 8. Rb1 {[%emt 0:06:00]} Rb8 {[%emt 0:01:50]} 9. b4 {[%emt 0:04:47]} b5 {[%emt 0:01:23]} 10. cxb5 {[%emt 0:05:15]} axb5 {[%emt 0:00:01]} 11. a4 {[%emt 0:01:18]} bxa4 {[%emt 0:03:25]} 12. Qxa4 {[%emt 0:09:40]} Bb7 {[%emt 0:05:32]} 13. b5 {[%emt 0:05:03]} Ra8 {[%emt 0:09:20]} 14. bxc6 {[%emt 0:18:01]} Rxa4 {[%emt 0:00:02]} 15. cxb7 {[%emt 0:00:07]} Nd7 {[%emt 0:01:45]} 16. Nxa4 {[%emt 0:00:21]} c6 {[%emt 0:00:40]} 17. Be3 {[%emt 0:01:09]} Nb8 {[%emt 0:02:12]} 18. Nb6 {[%emt 0:00:39]} Qc7 {[%emt 0:00:44]} 19. Nc8 {[%emt 0:04:16]} e5 {[%emt 0:02:58]} 20. Rfc1 {[%emt 0:00:48]} f5 {[%emt 0:02:53]} 21. Ng5 {[%emt 0:00:44]} Qd7 {[%emt 0:01:33]} 22. Ba7 {[%emt 0:00:39]} Bh6 {[%emt 0:01:02]} 23. Bxb8 {[%emt 0:00:13]} Bxg5 {[%emt 0:00:04]} 24. Bxd6 {[%emt 0:00:25]} Bxc1 {[%emt 0:00:35]} 25. b8=Q {[%emt 0:00:36]} Rxc8 {[%emt 0:00:11]} 26. Qb3+ {[%emt 0:00:04]} 1-0

[Event "EYCC 2017"]
[Site "Mamaia"]
[Date "2017.09.06"]
[Round "2"]
[White "Maltsevskaya, Aleksandra"]
[Black "Sosa Suarez, Carla Cristina"]
[Result "1-0"]
[ECO "A13"]
[WhiteElo "2271"]
[BlackElo "1930"]
[Annotator "NA"]
[PlyCount "109"]
[EventDate "2017.??.??"]
[EventType "swiss"]
[EventCountry "ROU"]
[SourceTitle "playchess.com"]
[Source "ChessBase"]
[SourceQuality "1"]
[TimeControl "40/5400+30:1800+30"]

1. c4 {[%emt 0:00:00]} e6 {[%emt 0:00:05]} 2. g3 {[%emt 0:00:00]} Nf6 {[%emt 0:00:15]} 3. Bg2 {[%emt 0:00:00]} d5 {[%emt 0:00:41]} 4. Nf3 {[%emt 0:00:00]} Be7 {[%emt 0:01:17]} 5. d4 {[%emt 0:00:06]} c6 {[%emt 0:01:33]} 6. Nbd2 {[%emt 0:00:09]} O-O {[%emt 0:02:35]} 7. O-O {[%emt 0:00:26]} b6 {[%emt 0:02:30]} 8. Qc2 {[%emt 0:12:04]} Bb7 {[%emt 0:08:38]} 9. e4 {[%emt 0:09:16]} Na6 {[%emt 0:14:29]} 10. cxd5 {[%emt 0:25:18]} cxd5 {[%emt 0:04:53]} 11. e5 {[%emt 0:01:49]} Rc8 {[%emt 0:08:12]} 12. Qd1 {[%emt 0:00:58]} Nd7 {[%emt 0:01:25]} 13. a3 {[%emt 0:01:07]} b5 {[%emt 0:03:25]} 14. b4 {[%emt 0:03:56]} Nb6 {[%emt 0:02:54]} 15. Nb3 {[%emt 0:00:08]} Nc4 {[%emt 0:04:52]} 16. Ne1 {[%emt 0:00:26]} Rc6 {[%emt 0:10:50]} 17. Nd3 {[%emt 0:01:06]} f6 {[%emt 0:04:12]} 18. f4 {[%emt 0:18:30]} Qb6 {[%emt 0:03:06]} 19. Ndc5 {[%emt 0:03:27]} Nb8 {[%emt 0:04:05]} 20. exf6 {[%emt 0:08:32]} Bxf6 {[%emt 0:01:10]} 21. Nxb7 {[%emt 0:00:20]} Qxb7 {[%emt 0:00:28]} 22. f5 {[%emt 0:01:36]} Nd7 {[%emt 0:02:36]} 23. Qg4 {[%emt 0:01:03]} Re8 {[%emt 0:02:43]} 24. Qh5 {[%emt 0:00:13]} Qc8 {[%emt 0:05:22]} 25. fxe6 {[%emt 0:00:54]} Rcxe6 {[%emt 0:00:08]} 26. Bxd5 {[%emt 0:02:26]} Ndb6 {[%emt 0:01:20]} 27. Bxe6+ {[%emt 0:00:43]} Qxe6 {[%emt 0:00:19]} 28. Qf5 {[%emt 0:02:36]} Qd6 {[%emt 0:02:12]} 29. Bf4 {[%emt 0:01:34]} Bxd4+ {[%emt 0:01:03]} 30. Nxd4 {[%emt 0:00:10]} Qxd4+ {[%emt 0:00:06]} 31. Kh1 {[%emt 0:00:08]} Qe4+ {[%emt 0:02:11]} 32. Qxe4 {[%emt 0:00:07]} Rxe4 {[%emt 0:00:03]} 33. Rae1 {[%emt 0:02:32]} Rxe1 {[%emt 0:00:24]} 34. Rxe1 {[%emt 0:00:06]} Kf7 {[%emt 0:01:38]} 35. Bb8 {[%emt 0:01:45]} a6 {[%emt 0:00:46]} 36. Ba7 {[%emt 0:00:54]} Nd7 {[%emt 0:00:56]} 37. Bc5 {[%emt 0:00:29]} Nde5 {[%emt 0:01:43]} 38. Rf1+ {[%emt 0:00:24]} Ke6 {[%emt 0:00:51]} 39. Rf8 {[%emt 0:00:57]} Nd3 {[%emt 0:01:50]} 40. Re8+ {[%emt 0:00:00]} Kf7 {[%emt 0:01:07]} 41. Re7+ {[%emt 0:01:34]} Kg8 {[%emt 0:02:00]} 42. Bd4 {[%emt 0:01:00]} g6 {[%emt 0:00:13]} 43. Rg7+ {[%emt 0:00:22]} Kf8 {[%emt 0:00:10]} 44. Rxh7 {[%emt 0:00:17]} Nxa3 {[%emt 0:00:56]} 45. Ra7 {[%emt 0:00:06]} Nc2 {[%emt 0:04:01]} 46. Rxa6 {[%emt 0:02:00]} Nxd4 {[%emt 0:03:04]} 47. Rd6 {[%emt 0:00:44]} Nf2+ {[%emt 0:03:33]} 48. Kg2 {[%emt 0:01:14]} Nf5 {[%emt 0:00:29]} 49. Rf6+ {[%emt 0:00:38]} Ke7 {[%emt 0:00:36]} 50. Rxf5 {[%emt 0:00:06]} Nd3 {[%emt 0:00:17]} 51. Rxb5 {[%emt 0:00:09]} Kf6 {[%emt 0:00:43]} 52. Kf3 {[%emt 0:00:21]} Ke6 {[%emt 0:00:46]} 53. Ke3 {[%emt 0:00:41]} Nb2 {[%emt 0:00:23]} 54. Ke4 {[%emt 0:00:09]} Nc4 {[%emt 0:00:12]} 55. Rd5 {Kxd5+} 1-0

[Event "EYCC 2017"]
[Site "Mamaia"]
[Date "2017.09.06"]
[Round "2"]
[White "Afonasieva, Anna"]
[Black "Bucur, Denisa-Andreea"]
[Result "1-0"]
[ECO "A46"]
[WhiteElo "2263"]
[BlackElo "1916"]
[Annotator "NA"]
[PlyCount "61"]
[EventDate "2017.??.??"]
[EventType "swiss"]
[EventCountry "ROU"]
[SourceTitle "playchess.com"]
[Source "ChessBase"]
[SourceQuality "1"]
[TimeControl "40/5400+30:1800+30"]

1. d4 {[%emt 0:00:00]} Nf6 {[%emt 0:00:07]} 2. Nf3 {[%emt 0:00:00]} e6 {[%emt 0:00:06]} 3. g3 {[%emt 0:00:00]} b5 {[%emt 0:00:07]} 4. Bg2 {[%emt 0:00:00]} Bb7 {[%emt 0:00:06]} 5. O-O {[%emt 0:00:00]} c5 {[%emt 0:01:40]} 6. c3 {[%emt 0:00:12]} Be7 {[%emt 0:01:10]} 7. Bg5 {[%emt 0:03:13]} O-O {[%emt 0:07:41]} 8. a4 {[%emt 0:06:50]} cxd4 {[%emt 0:04:31]} 9. axb5 {[%emt 0:05:44]} dxc3 {[%emt 0:02:01]} 10. Nxc3 {[%emt 0:02:49]} d5 {[%emt 0:05:18]} 11. Be3 {[%emt 0:09:51]} a6 {[%emt 0:03:08]} 12. Qb3 {[%emt 0:02:23]} Nbd7 {[%emt 0:07:15]} 13. Rfc1 {[%emt 0:07:22]} Ng4 {[%emt 0:08:11]} 14. Bd4 {[%emt 0:16:52]} e5 {[%emt 0:09:20]} 15. Nxe5 {[%emt 0:01:44]} Ngxe5 {[%emt 0:02:01]} 16. Nxd5 {[%emt 0:00:27]} Rb8 {[%emt 0:06:34]} 17. bxa6 {[%emt 0:04:48]} Bxa6 {[%emt 0:06:00]} 18. Qe3 {[%emt 0:03:17]} Bg5 {[%emt 0:02:52]} 19. f4 {[%emt 0:02:31]} Re8 {[%emt 0:07:22]} 20. Rxa6 {[%emt 0:03:14]} Nc6 {[%emt 0:02:11]} 21. Raxc6 {[%emt 0:03:05]} Rxe3 {[%emt 0:00:13]} 22. Bxe3 {[%emt 0:00:04]} Bf6 {[%emt 0:01:00]} 23. Nxf6+ {[%emt 0:03:07]} gxf6 {[%emt 0:03:37]} 24. Ba7 {[%emt 0:00:17]} Ra8 {[%emt 0:00:57]} 25. Rc7 {[%emt 0:00:11]} Rxa7 {[%emt 0:00:59]} 26. Rc8 {[%emt 0:00:05]} Qxc8 {[%emt 0:00:14]} 27. Rxc8+ {[%emt 0:00:04]} Kg7 {[%emt 0:00:09]} 28. Kf2 {[%emt 0:00:39]} Ra2 {[%emt 0:00:23]} 29. b3 {[%emt 0:04:58]} Rb2 {[%emt 0:00:28]} 30. Rc7 {[%emt 0:01:24]} Nb6 {[%emt 0:00:13]} 31. Rb7 {[%emt 0:00:31]} 1-0

[Event "EYCC 2017"]
[Site "Mamaia"]
[Date "2017.09.06"]
[Round "2"]
[White "Sieber, Fiona"]
[Black "Asatryan, Sona"]
[Result "0-1"]
[ECO "C96"]
[WhiteElo "2248"]
[BlackElo "2043"]
[Annotator "NA"]
[PlyCount "94"]
[EventDate "2017.??.??"]
[EventType "swiss"]
[EventCountry "ROU"]
[SourceTitle "playchess.com"]
[Source "ChessBase"]
[SourceQuality "1"]
[TimeControl "40/5400+30:1800+30"]

1. e4 {[%emt 0:00:00]} e5 {[%emt 0:00:06]} 2. Nf3 {[%emt 0:00:00]} Nc6 {[%emt 0:00:04]} 3. Bb5 {[%emt 0:00:00]} a6 {[%emt 0:00:04]} 4. Ba4 {[%emt 0:00:00]} Nf6 {[%emt 0:00:07]} 5. O-O Be7 6. Re1 {[%emt 0:00:14]} b5 {[%emt 0:00:18]} 7. Bb3 {[%emt 0:00:04]} d6 {[%emt 0:00:09]} 8. c3 {[%emt 0:00:04]} O-O {[%emt 0:00:13]} 9. h3 {[%emt 0:00:04]} Na5 {[%emt 0:00:26]} 10. Bc2 {[%emt 0:01:00]} c5 {[%emt 0:00:53]} 11. d4 {[%emt 0:00:06]} Nd7 {[%emt 0:00:44]} 12. Nbd2 {[%emt 0:01:21]} exd4 {[%emt 0:00:46]} 13. cxd4 {[%emt 0:00:05]} Nc6 {[%emt 0:00:38]} 14. d5 {[%emt 0:00:07]} Nce5 {[%emt 0:00:13]} 15. Nxe5 {[%emt 0:00:48]} Nxe5 {[%emt 0:00:25]} 16. a4 {[%emt 0:00:06]} Rb8 {[%emt 0:01:24]} 17. f4 {[%emt 0:00:19]} Ng6 {[%emt 0:00:37]} 18. Nf3 {[%emt 0:00:14]} Bh4 {[%emt 0:00:57]} 19. Rf1 {[%emt 0:00:08]} Bg3 {[%emt 0:00:28]} 20. f5 {[%emt 0:00:35]} Ne5 {[%emt 0:00:33]} 21. Ng5 {[%emt 0:02:13]} h6 {[%emt 0:00:52]} 22. f6 {[%emt 0:03:37]} gxf6 {[%emt 0:04:26]} 23. Ra3 {[%emt 0:17:31]} Bh2+ {[%emt 0:15:04]} 24. Kxh2 {[%emt 0:00:27]} hxg5 {[%emt 0:01:54]} 25. Rg3 {[%emt 0:26:20]} Kg7 {[%emt 0:07:36]} 26. Kg1 {[%emt 0:12:54]} Rh8 {[%emt 0:09:19]} 27. Rf2 {[%emt 0:03:46]} Bd7 {[%emt 0:10:10]} 28. Bd2 {[%emt 0:07:15]} Qe7 {[%emt 0:04:15]} 29. axb5 {[%emt 0:04:54]} axb5 {[%emt 0:00:59]} 30. b3 {[%emt 0:01:06]} b4 {[%emt 0:03:56]} 31. Bc1 {[%emt 0:01:37]} Rh7 {[%emt 0:05:40]} 32. Bd3 {[%emt 0:02:07]} Ra8 {[%emt 0:06:56]} 33. Bb2 {[%emt 0:00:32]} Rh6 {[%emt 0:07:05]} 34. Qf1 {[%emt 0:03:39]} Rah8 {[%emt 0:06:46]} 35. Bb5 {[%emt 0:03:05]} Bc8 {[%emt 0:01:52]} 36. Qe2 {[%emt 0:05:27]} Kf8 {[%emt 0:04:28]} 37. Rf1 {[%emt 0:03:07]} Rh4 {[%emt 0:02:01]} 38. Ra1 {[%emt 0:01:37]} g4 {[%emt 0:03:24]} 39. Ra8 {[%emt 0:01:45]} Qb7 {[%emt 0:02:15]} 40. Bxe5 {[%emt 0:00:00]} Qxa8 {[%emt 0:01:04]} 41. Bxd6+ {[%emt 0:14:21]} Kg8 {[%emt 0:05:49]} 42. Bxc5 {[%emt 0:00:51]} Qa1+ {[%emt 0:03:59]} 43. Kh2 {[%emt 0:02:10]} Qe5 {[%emt 0:01:43]} 44. Bxb4 {[%emt 0:01:38]} Rxh3+ {[%emt 0:01:03]} 45. gxh3 {[%emt 0:00:35]} Rxh3+ {[%emt 0:00:09]} 46. Kg1 {[%emt 0:00:43]} Qxg3+ {[%emt 0:00:27]} 47. Qg2 {[%emt 0:00:25]} Qe3+ {[%emt 0:00:53]} 0-1

[Event "EYCC 2017"]
[Site "Mamaia"]
[Date "2017.09.06"]
[Round "2"]
[White "Kubicka, Anna"]
[Black "Hrescak, Ivana"]
[Result "1-0"]
[ECO "B90"]
[WhiteElo "2221"]
[BlackElo "2034"]
[Annotator "NA"]
[PlyCount "111"]
[EventDate "2017.??.??"]
[EventType "swiss"]
[EventCountry "ROU"]
[SourceTitle "playchess.com"]
[Source "ChessBase"]
[SourceQuality "1"]
[TimeControl "40/5400+30:1800+30"]

1. e4 {[%emt 0:00:00]} c5 {[%emt 0:00:06]} 2. Nf3 {[%emt 0:00:00]} d6 {[%emt 0:00:31]} 3. d4 {[%emt 0:00:03]} cxd4 {[%emt 0:00:07]} 4. Nxd4 {[%emt 0:00:05]} Nf6 {[%emt 0:00:39]} 5. Nc3 {[%emt 0:00:08]} a6 {[%emt 0:00:12]} 6. Be3 {[%emt 0:00:26]} e5 {[%emt 0:03:14]} 7. Nb3 {[%emt 0:00:08]} Be6 {[%emt 0:02:32]} 8. h3 {[%emt 0:00:19]} h5 {[%emt 0:02:42]} 9. f4 {[%emt 0:03:50]} Qc7 {[%emt 0:09:40]} 10. Qd2 {[%emt 0:13:22]} Nbd7 {[%emt 0:04:07]} 11. O-O-O {[%emt 0:06:53]} b5 {[%emt 0:02:59]} 12. Kb1 {[%emt 0:13:54]} Be7 {[%emt 0:06:12]} 13. f5 {[%emt 0:15:44]} Bc4 {[%emt 0:06:03]} 14. Bxc4 {[%emt 0:08:53]} bxc4 {[%emt 0:02:38]} 15. Nc1 {[%emt 0:01:18]} Qb7 {[%emt 0:05:29]} 16. Bg5 {[%emt 0:00:55]} Rb8 {[%emt 0:08:21]} 17. b3 {[%emt 0:00:09]} a5 {[%emt 0:05:24]} 18. Rhe1 {[%emt 0:09:09]} Qb4 {[%emt 0:07:23]} 19. Bxf6 {[%emt 0:06:01]} Nxf6 {[%emt 0:00:40]} 20. Nd5 {[%emt 0:02:20]} Nxd5 {[%emt 0:01:35]} 21. Qxd5 {[%emt 0:00:02]} O-O {[%emt 0:07:07]} 22. Qd2 {[%emt 0:02:47]} c3 {[%emt 0:03:04]} 23. Qe3 {[%emt 0:01:26]} Rfc8 {[%emt 0:03:09]} 24. Rd5 {[%emt 0:04:44]} a4 {[%emt 0:05:00]} 25. Nd3 {[%emt 0:00:25]} Qb7 {[%emt 0:00:33]} 26. b4 {[%emt 0:03:29]} a3 {[%emt 0:01:01]} 27. Ka1 {[%emt 0:00:53]} Rc4 {[%emt 0:00:45]} 28. Rb1 {[%emt 0:01:42]} Bd8 {[%emt 0:00:54]} 29. Rb3 {[%emt 0:01:00]} Ra8 {[%emt 0:03:12]} 30. Qe1 {[%emt 0:00:49]} Qc7 {[%emt 0:01:51]} 31. Qe2 {[%emt 0:02:16]} Ra4 {[%emt 0:01:48]} 32. g4 {[%emt 0:01:05]} hxg4 {[%emt 0:01:19]} 33. Qxg4 {[%emt 0:00:02]} Qb6 {[%emt 0:01:37]} 34. Rb1 {[%emt 0:01:25]} Bf6 {[%emt 0:00:37]} 35. Qe2 {[%emt 0:00:22]} Qc6 {[%emt 0:01:43]} 36. Qg2 {[%emt 0:01:00]} Kf8 {[%emt 0:00:15]} 37. Qg4 {[%emt 0:00:38]} Ke7 {[%emt 0:01:41]} 38. Qg2 {[%emt 0:00:21]} Ra8 {[%emt 0:01:20]} 39. Rb3 {[%emt 0:00:29]} Qb6 {[%emt 0:01:20]} 40. Qe2 {[%emt 0:00:00]} Qc7 {[%emt 0:01:05]} 41. Nc5 {[%emt 0:09:48]} Rd4 {[%emt 0:06:53]} 42. Rxd4 {[%emt 0:00:25]} exd4 {[%emt 0:00:07]} 43. Nd3 {[%emt 0:00:12]} Qc4 {[%emt 0:06:36]} 44. b5 {[%emt 0:01:14]} Rb8 {[%emt 0:05:38]} 45. Rb4 {[%emt 0:00:43]} Qc8 {[%emt 0:00:14]} 46. Nf4 {[%emt 0:00:26]} Qc5 {[%emt 0:05:04]} 47. Nd5+ {[%emt 0:00:49]} Kd8 {[%emt 0:00:57]} 48. b6 {[%emt 0:02:52]} Be5 {[%emt 0:04:00]} 49. Qd3 {[%emt 0:04:14]} Qa5 {[%emt 0:01:25]} 50. Qf1 {[%emt 0:04:24]} Rb7 {[%emt 0:01:02]} 51. h4 {[%emt 0:01:49]} Kc8 {[%emt 0:02:11]} 52. f6 {[%emt 0:00:43]} Bxf6 {[%emt 0:01:02]} 53. Qf5+ {[%emt 0:00:11]} Kd8 {[%emt 0:00:34]} 54. Rc4 {[%emt 0:00:34]} Rb8 {[%emt 0:00:58]} 55. b7 {[%emt 0:00:45]} Ke8 {[%emt 0:00:49]} 56. Nxf6+ {[%emt 0:00:24]} 1-0

[Event "EYCC 2017"]
[Site "Mamaia"]
[Date "2017.09.06"]
[Round "2"]
[White "Tsvetkov, Andrey"]
[Black "Stalmach, Richard"]
[Result "1-0"]
[ECO "A80"]
[WhiteElo "2219"]
[BlackElo "1888"]
[Annotator "NA"]
[PlyCount "63"]
[EventDate "2017.??.??"]
[EventType "swiss"]
[EventCountry "ROU"]
[SourceTitle "playchess.com"]
[Source "ChessBase"]
[SourceQuality "1"]
[TimeControl "40/5400+30:1800+30"]

1. d4 {[%emt 0:00:00]} f5 {[%emt 0:00:10]} 2. Nf3 {[%emt 0:00:00]} Nf6 {[%emt 0:00:05]} 3. g3 {[%emt 0:00:08]} g6 {[%emt 0:00:07]} 4. c4 {[%emt 0:00:39]} Bg7 {[%emt 0:00:06]} 5. b4 {[%emt 0:00:42]} d6 {[%emt 0:01:47]} 6. Bb2 {[%emt 0:00:22]} O-O {[%emt 0:02:33]} 7. Bg2 {[%emt 0:00:48]} c6 {[%emt 0:03:43]} 8. O-O {[%emt 0:02:30]} b6 {[%emt 0:12:49]} 9. Qb3 {[%emt 0:05:27]} Kh8 {[%emt 0:11:02]} 10. Nbd2 {[%emt 0:02:48]} Be6 {[%emt 0:13:52]} 11. d5 {[%emt 0:05:43]} Bd7 {[%emt 0:07:17]} 12. Nd4 {[%emt 0:01:37]} Qc8 {[%emt 0:01:12]} 13. b5 {[%emt 0:01:55]} c5 {[%emt 0:05:30]} 14. Ne6 {[%emt 0:00:52]} Rg8 {[%emt 0:02:03]} 15. e4 {[%emt 0:02:37]} fxe4 {[%emt 0:03:21]} 16. Nxe4 {[%emt 0:00:24]} Be8 {[%emt 0:01:22]} 17. Nxg7 {[%emt 0:01:43]} Kxg7 {[%emt 0:00:47]} 18. Bxf6+ {[%emt 0:00:05]} exf6 {[%emt 0:01:16]} 19. Nxd6 {[%emt 0:00:00]} Qd8 {[%emt 0:00:28]} 20. Nxe8+ {[%emt 0:02:09]} Rxe8 {[%emt 0:01:13]} 21. d6 {[%emt 0:02:15]} Nd7 {[%emt 0:00:04]} 22. Bxa8 {[%emt 0:00:11]} Qxa8 {[%emt 0:00:01]} 23. f4 {[%emt 0:00:27]} Qe4 {[%emt 0:03:18]} 24. Qc3 {[%emt 0:00:42]} Qf5 {[%emt 0:01:45]} 25. Rae1 {[%emt 0:00:29]} Re6 {[%emt 0:01:26]} 26. Rxe6 {[%emt 0:00:12]} Qxe6 {[%emt 0:00:01]} 27. Qd3 {[%emt 0:00:01]} h6 {[%emt 0:02:19]} 28. Rf2 {[%emt 0:01:53]} h5 {[%emt 0:01:59]} 29. Re2 {[%emt 0:00:24]} Qg4 {[%emt 0:00:07]} 30. Re7+ {[%emt 0:01:39]} Kh6 {[%emt 0:00:19]} 31. f5 {[%emt 0:00:13]} Ne5 {[%emt 0:00:16]} 32. Rxe5 {[%emt 0:00:07]} 1-0